[Event "Early-Titled-Tuesday-Blitz-April-02-2024"]
[Site "Chess.com"]
[Date "2024.04.02"]
[Round "1"]
[White "Pragmatist237"]
[Black "Orest_Vovk"]
[Result "0-1"]
[WhiteElo "2172"]
[BlackElo "2582"]
[TimeControl "180+1"]
[EndTime "8:08:37 PDT"]
[Termination "Orest_Vovk won by checkmate"]

1. e4 {[%clk 0:02:56.6]} 1... Nc6 {[%clk 0:02:58.6]} 2. d4 {[%clk 0:02:53.8]}
2... e5 {[%clk 0:02:58.8]} 3. d5 {[%clk 0:02:54]} 3... Nce7 {[%clk 0:02:58.9]}
4. c4 {[%clk 0:02:54.2]} 4... Ng6 {[%clk 0:02:59]} 5. Nc3 {[%clk 0:02:54.2]}
5... Bc5 {[%clk 0:02:57.7]} 6. Bd3 {[%clk 0:02:52]} 6... Nf6 {[%clk 0:02:43.4]}
7. Nge2 {[%clk 0:02:44.1]} 7... Ng4 {[%clk 0:02:41]} 8. Be3 {[%clk 0:01:41.9]}
8... Bxe3 {[%clk 0:02:36.1]} 9. fxe3 {[%clk 0:01:42.8]} 9... Nxe3 {[%clk
0:02:36.3]} 10. Qd2 {[%clk 0:01:43.4]} 10... Nxg2+ {[%clk 0:02:33.9]} 11. Kd1
{[%clk 0:01:43.7]} 11... d6 {[%clk 0:02:26.7]} 12. Kc2 {[%clk 0:01:35.4]} 12...
N2f4 {[%clk 0:02:24.4]} 13. Nxf4 {[%clk 0:01:34.7]} 13... Nxf4 {[%clk
0:02:23.8]} 14. Ne2 {[%clk 0:01:34.7]} 14... Nxe2 {[%clk 0:02:18.9]} 15. Qxe2
{[%clk 0:01:33.1]} 15... Bd7 {[%clk 0:02:01.7]} 16. Rhg1 {[%clk 0:01:26.6]}
16... O-O {[%clk 0:01:54.4]} 17. Qh5 {[%clk 0:01:19]} 17... g6 {[%clk
0:01:47.3]} 18. Qh6 {[%clk 0:01:13.2]} 18... Qf6 {[%clk 0:01:43.4]} 19. Raf1
{[%clk 0:01:09.5]} 19... Qg7 {[%clk 0:01:43.3]} 20. Qh4 {[%clk 0:01:08.9]} 20...
f6 {[%clk 0:01:32.5]} 21. Qg3 {[%clk 0:00:48.5]} 21... Rf7 {[%clk 0:01:30.3]}
22. h4 {[%clk 0:00:48.3]} 22... Raf8 {[%clk 0:01:29.5]} 23. h5 {[%clk 0:00:48]}
23... g5 {[%clk 0:01:25.8]} 24. Qh2 {[%clk 0:00:29.9]} 24... h6 {[%clk
0:01:24.1]} 25. Qf2 {[%clk 0:00:15.9]} 25... Qh7 {[%clk 0:01:16.8]} 26. Qxa7
{[%clk 0:00:15.7]} 26... f5 {[%clk 0:01:09.5]} 27. exf5 {[%clk 0:00:07.9]} 27...
Bxf5 {[%clk 0:01:09.2]} 28. Bxf5 {[%clk 0:00:05.2]} 28... Rxf5 {[%clk 0:01:09]}
29. Rxf5 {[%clk 0:00:05.5]} 29... Qxf5+ {[%clk 0:01:07.8]} 30. Kb3 {[%clk
0:00:05.9]} 30... Qf3+ {[%clk 0:00:44.6]} 31. Kb4 {[%clk 0:00:05]} 31... Qf2
{[%clk 0:00:40.5]} 32. Qxf2 {[%clk 0:00:04.3]} 32... Rxf2 {[%clk 0:00:39.7]} 33.
Rb1 {[%clk 0:00:03.1]} 33... g4 {[%clk 0:00:35.3]} 34. c5 {[%clk 0:00:03.3]}
34... g3 {[%clk 0:00:28.8]} 35. cxd6 {[%clk 0:00:03.3]} 35... cxd6 {[%clk
0:00:28.3]} 36. Rg1 {[%clk 0:00:02.8]} 36... g2 {[%clk 0:00:26]} 37. b3 {[%clk
0:00:03]} 37... Rxa2 {[%clk 0:00:25.3]} 38. Kb5 {[%clk 0:00:03.5]} 38... Rb2
{[%clk 0:00:19]} 39. Kb6 {[%clk 0:00:04]} 39... Rxb3+ {[%clk 0:00:17.3]} 40. Kc7
{[%clk 0:00:04.4]} 40... Rg3 {[%clk 0:00:15.4]} 41. Kxd6 {[%clk 0:00:04.8]}
41... e4 {[%clk 0:00:15]} 42. Ke7 {[%clk 0:00:03.7]} 42... e3 {[%clk 0:00:13.9]}
43. d6 {[%clk 0:00:04.2]} 43... e2 {[%clk 0:00:12]} 44. d7 {[%clk 0:00:04.5]}
44... Rg7+ {[%clk 0:00:08.1]} 45. Ke8 {[%clk 0:00:04.1]} 45... Rxd7 {[%clk
0:00:05.9]} 46. Kxd7 {[%clk 0:00:05]} 46... Kf7 {[%clk 0:00:05.4]} 47. Kd6
{[%clk 0:00:04.7]} 47... Kf6 {[%clk 0:00:05.8]} 48. Kd5 {[%clk 0:00:03.1]} 48...
Kf5 {[%clk 0:00:06]} 49. Kd4 {[%clk 0:00:03.4]} 49... Kf4 {[%clk 0:00:06.3]} 50.
Kd3 {[%clk 0:00:04.1]} 50... Kf3 {[%clk 0:00:06.6]} 51. Kd2 {[%clk 0:00:03.6]}
51... Kf2 {[%clk 0:00:06.2]} 52. Rxg2+ {[%clk 0:00:04.4]} 52... Kxg2 {[%clk
0:00:06.1]} 53. Kxe2 {[%clk 0:00:05.3]} 53... Kg3 {[%clk 0:00:06.4]} 54. Ke3
{[%clk 0:00:05.9]} 54... Kg4 {[%clk 0:00:06.7]} 55. Ke4 {[%clk 0:00:06.8]} 55...
Kxh5 {[%clk 0:00:07]} 56. Kd5 {[%clk 0:00:07.7]} 56... Kg4 {[%clk 0:00:07.3]}
57. Kc5 {[%clk 0:00:08.6]} 57... h5 {[%clk 0:00:07.7]} 58. Kb6 {[%clk
0:00:09.5]} 58... Kg3 {[%clk 0:00:08.1]} 59. Kxb7 {[%clk 0:00:10.4]} 59... Kg2
{[%clk 0:00:08.4]} 60. Kc6 {[%clk 0:00:11.3]} 60... h4 {[%clk 0:00:08.8]} 61.
Kd5 {[%clk 0:00:12.2]} 61... h3 {[%clk 0:00:09.3]} 62. Ke4 {[%clk 0:00:13.1]}
62... h2 {[%clk 0:00:09.6]} 63. Kf5 {[%clk 0:00:14]} 63... h1=Q {[%clk
0:00:09.6]} 64. Ke5 {[%clk 0:00:14.9]} 64... Qh4 {[%clk 0:00:09.3]} 65. Kf5
{[%clk 0:00:14.9]} 65... Kf3 {[%clk 0:00:09.3]} 66. Ke6 {[%clk 0:00:14.6]} 66...
Qg5 {[%clk 0:00:09.1]} 67. Kd6 {[%clk 0:00:15.5]} 67... Ke4 {[%clk 0:00:09.1]}
68. Kd7 {[%clk 0:00:16.4]} 68... Qf6 {[%clk 0:00:09.1]} 69. Kc7 {[%clk
0:00:16.9]} 69... Kd5 {[%clk 0:00:09.2]} 70. Kc8 {[%clk 0:00:17.8]} 70... Qe7
{[%clk 0:00:09]} 71. Kb8 {[%clk 0:00:18.3]} 71... Kc6 {[%clk 0:00:09.1]} 72. Ka8
{[%clk 0:00:19.2]} 72... Qb7# {[%clk 0:00:07.3]} 0-1

[Event "Early-Titled-Tuesday-Blitz-April-02-2024"]
[Site "Chess.com"]
[Date "2024.04.02"]
[Round "1"]
[White "MatthewG-p4p"]
[Black "colegiodemadrid"]
[Result "1-0"]
[WhiteElo "2896"]
[BlackElo "2509"]
[TimeControl "180+1"]
[EndTime "8:08:47 PDT"]
[Termination "MatthewG-p4p won by resignation"]

1. e4 {[%clk 0:02:56]} 1... e5 {[%clk 0:02:59.2]} 2. Nf3 {[%clk 0:02:55.7]} 2...
Nf6 {[%clk 0:02:59.2]} 3. d4 {[%clk 0:02:55.6]} 3... Nxe4 {[%clk 0:02:56]} 4.
Bd3 {[%clk 0:02:55.5]} 4... d5 {[%clk 0:02:54.6]} 5. Nxe5 {[%clk 0:02:55.4]}
5... Bd6 {[%clk 0:02:48.4]} 6. O-O {[%clk 0:02:52.5]} 6... O-O {[%clk
0:02:48.1]} 7. Nc3 {[%clk 0:02:51.9]} 7... Nxc3 {[%clk 0:02:40.4]} 8. bxc3
{[%clk 0:02:52.8]} 8... Nd7 {[%clk 0:02:30.8]} 9. Nxd7 {[%clk 0:02:52.1]} 9...
Qxd7 {[%clk 0:02:29.1]} 10. Qh5 {[%clk 0:02:38.6]} 10... g6 {[%clk 0:02:26.8]}
11. Qh6 {[%clk 0:02:33.9]} 11... Re8 {[%clk 0:02:26.5]} 12. Bf4 {[%clk
0:02:28.9]} 12... Bxf4 {[%clk 0:02:08.4]} 13. Qxf4 {[%clk 0:02:29.8]} 13... Qd6
{[%clk 0:02:08.9]} 14. Qxd6 {[%clk 0:02:05.5]} 14... cxd6 {[%clk 0:02:09.8]} 15.
Rab1 {[%clk 0:02:06.3]} 15... Re7 {[%clk 0:01:57]} 16. Rb5 {[%clk 0:01:59.9]}
16... Be6 {[%clk 0:01:54.3]} 17. Re1 {[%clk 0:02:00.5]} 17... Rc7 {[%clk
0:01:52.3]} 18. Re3 {[%clk 0:01:28.4]} 18... b6 {[%clk 0:01:49.9]} 19. Rb3
{[%clk 0:01:28.4]} 19... Rac8 {[%clk 0:01:49.9]} 20. Be2 {[%clk 0:01:28.3]}
20... h5 {[%clk 0:01:48.2]} 21. f3 {[%clk 0:01:27.7]} 21... Kg7 {[%clk
0:01:46.8]} 22. Kf2 {[%clk 0:01:27.7]} 22... Kf6 {[%clk 0:01:46.8]} 23. h4
{[%clk 0:01:26.7]} 23... Bf5 {[%clk 0:01:38.3]} 24. Bd1 {[%clk 0:01:26]} 24...
Rc4 {[%clk 0:01:35.7]} 25. Ke1 {[%clk 0:01:25.3]} 25... Ra4 {[%clk 0:01:32]} 26.
a3 {[%clk 0:01:25.5]} 26... Rac4 {[%clk 0:01:29.2]} 27. Kd2 {[%clk 0:01:25.7]}
27... Bd7 {[%clk 0:01:26.8]} 28. Be2 {[%clk 0:01:23.9]} 28... R4c7 {[%clk
0:01:26.5]} 29. Ba6 {[%clk 0:01:17.1]} 29... Re8 {[%clk 0:01:26.3]} 30. Rxe8
{[%clk 0:01:13.2]} 30... Bxe8 {[%clk 0:01:27.2]} 31. Rb1 {[%clk 0:01:13.8]}
31... Kf5 {[%clk 0:01:20.1]} 32. Re1 {[%clk 0:01:11]} 32... Ba4 {[%clk
0:01:19.2]} 33. g3 {[%clk 0:01:06.2]} 33... Kf6 {[%clk 0:01:17.5]} 34. g4 {[%clk
0:01:04.2]} 34... Bc6 {[%clk 0:00:58.6]} 35. gxh5 {[%clk 0:00:41.7]} 35... gxh5
{[%clk 0:00:57.9]} 36. Rg1 {[%clk 0:00:41.9]} 36... b5 {[%clk 0:00:39.6]} 37.
Rg5 {[%clk 0:00:41.7]} 37... Re7 {[%clk 0:00:38.2]} 38. Rxh5 {[%clk 0:00:40.9]}
38... Re8 {[%clk 0:00:37.8]} 39. Rh6+ {[%clk 0:00:34.2]} 39... Ke7 {[%clk
0:00:36.8]} 40. Rh7 {[%clk 0:00:28.6]} 40... Rb8 {[%clk 0:00:29.1]} 41. h5
{[%clk 0:00:28]} 41... Bd7 {[%clk 0:00:29.1]} 42. h6 {[%clk 0:00:19.6]} 42...
Kf6 {[%clk 0:00:29.1]} 43. Rg7 {[%clk 0:00:16.9]} 43... Rh8 {[%clk 0:00:29.7]}
44. Bb7 {[%clk 0:00:13]} 44... Rxh6 {[%clk 0:00:26.9]} 45. Rg8 {[%clk
0:00:13.5]} 45... Rh2+ {[%clk 0:00:23.3]} 46. Kd1 {[%clk 0:00:14]} 46... Bf5
{[%clk 0:00:22.3]} 47. Bxd5 {[%clk 0:00:14]} 47... Bxc2+ {[%clk 0:00:22.6]} 48.
Ke1 {[%clk 0:00:13.8]} 48... Bd3 {[%clk 0:00:21.9]} 49. Rd8 {[%clk 0:00:13.8]}
49... Ke7 {[%clk 0:00:21]} 50. Ra8 {[%clk 0:00:14.5]} 50... f5 {[%clk
0:00:20.2]} 51. Rxa7+ {[%clk 0:00:14.8]} 51... Kf6 {[%clk 0:00:20.9]} 52. Rd7
{[%clk 0:00:15.4]} 52... Re2+ {[%clk 0:00:20.3]} 53. Kd1 {[%clk 0:00:15.7]}
53... Rc2 {[%clk 0:00:18.6]} 54. Rxd6+ {[%clk 0:00:09.5]} 54... Kg5 {[%clk
0:00:18.4]} 55. Rc6 {[%clk 0:00:08.3]} 55... Kf4 {[%clk 0:00:17.6]} 56. Bb3
{[%clk 0:00:08.5]} 56... Rb2 {[%clk 0:00:17.4]} 57. Bf7 {[%clk 0:00:06.2]} 57...
Kxf3 {[%clk 0:00:15.8]} 58. d5 {[%clk 0:00:06.6]} 58... f4 {[%clk 0:00:14.3]}
59. Re6 {[%clk 0:00:05.2]} 59... Bc4 {[%clk 0:00:13.5]} 60. Bh5+ {[%clk
0:00:04.5]} 60... Kg3 {[%clk 0:00:13.3]} 61. Re5 {[%clk 0:00:04.2]} 61... f3
{[%clk 0:00:13]} 62. Rg5+ {[%clk 0:00:04.6]} 62... Kf4 {[%clk 0:00:13.2]} 63.
Rg8 {[%clk 0:00:04.3]} 63... f2 {[%clk 0:00:13.1]} 64. Rf8+ {[%clk 0:00:05]}
64... Kg3 {[%clk 0:00:13.7]} 65. d6 {[%clk 0:00:05.4]} 65... f1=Q+ {[%clk
0:00:13.2]} 66. Rxf1 {[%clk 0:00:05.2]} 66... Rb1+ {[%clk 0:00:13.7]} 67. Kd2
{[%clk 0:00:04.5]} 67... Rxf1 {[%clk 0:00:14.6]} 68. d7 {[%clk 0:00:05.2]} 68...
Rf8 {[%clk 0:00:14.2]} 69. Be8 {[%clk 0:00:05.9]} 69... Rf5 {[%clk 0:00:13.4]}
70. d8=Q {[%clk 0:00:03.4]} 70... Rd5+ {[%clk 0:00:13.9]} 71. Qxd5 {[%clk
0:00:04.1]} 71... Bxd5 {[%clk 0:00:14.7]} 72. Ke3 {[%clk 0:00:05]} 72... Bc4
{[%clk 0:00:14.9]} 73. Kd4 {[%clk 0:00:05.4]} 73... Kf3 {[%clk 0:00:15.4]} 74.
Kc5 {[%clk 0:00:05.3]} 74... Ke3 {[%clk 0:00:16]} 75. Bxb5 {[%clk 0:00:06]}
75... Be6 {[%clk 0:00:16.7]} 76. Kd6 {[%clk 0:00:05.6]} 76... Kd2 {[%clk
0:00:17.5]} 77. c4 {[%clk 0:00:06.3]} 77... Kc3 {[%clk 0:00:17.9]} 78. Kxe6
{[%clk 0:00:06.3]} 78... Kb3 {[%clk 0:00:18.6]} 79. c5 {[%clk 0:00:06.4]} 1-0

[Event "Early-Titled-Tuesday-Blitz-April-02-2024"]
[Site "Chess.com"]
[Date "2024.04.02"]
[Round "1"]
[White "ladytitan"]
[Black "Lovetov"]
[Result "1/2-1/2"]
[WhiteElo "2202"]
[BlackElo "2546"]
[TimeControl "180+1"]
[EndTime "8:08:48 PDT"]
[Termination "Game drawn - insufficient material"]

1. d4 {[%clk 0:02:58.6]} 1... Nf6 {[%clk 0:02:59.5]} 2. c4 {[%clk 0:02:57.4]}
2... g6 {[%clk 0:03:00.1]} 3. Nc3 {[%clk 0:02:57.2]} 3... d5 {[%clk 0:03:00.8]}
4. cxd5 {[%clk 0:02:56.9]} 4... Nxd5 {[%clk 0:03:01.7]} 5. e4 {[%clk 0:02:57.6]}
5... Nxc3 {[%clk 0:03:02.3]} 6. bxc3 {[%clk 0:02:58.5]} 6... Bg7 {[%clk
0:03:02.9]} 7. Nf3 {[%clk 0:02:59.2]} 7... c5 {[%clk 0:03:03.3]} 8. Be3 {[%clk
0:02:59.5]} 8... Nc6 {[%clk 0:03:02.2]} 9. Be2 {[%clk 0:02:58.8]} 9... cxd4
{[%clk 0:03:01.7]} 10. cxd4 {[%clk 0:02:57.3]} 10... Qa5+ {[%clk 0:03:02.2]} 11.
Qd2 {[%clk 0:02:55]} 11... Qxd2+ {[%clk 0:03:02.6]} 12. Kxd2 {[%clk 0:02:55.9]}
12... O-O {[%clk 0:03:02.7]} 13. Rhc1 {[%clk 0:02:25.4]} 13... Rd8 {[%clk
0:02:40.6]} 14. Rc4 {[%clk 0:02:22.2]} 14... Be6 {[%clk 0:02:27.6]} 15. Ra4
{[%clk 0:02:14.4]} 15... Bg4 {[%clk 0:02:28.2]} 16. Rb1 {[%clk 0:01:51.3]} 16...
Bxf3 {[%clk 0:02:16.7]} 17. Bxf3 {[%clk 0:01:44]} 17... Nxd4 {[%clk 0:02:12.6]}
18. Bxd4 {[%clk 0:01:38.8]} 18... Bxd4 {[%clk 0:02:10]} 19. Rxb7 {[%clk
0:01:33]} 19... Bxf2+ {[%clk 0:01:58.6]} 20. Ke2 {[%clk 0:01:32.4]} 20... Bc5
{[%clk 0:01:58.8]} 21. Rc4 {[%clk 0:01:28]} 21... Rac8 {[%clk 0:01:48.3]} 22. e5
{[%clk 0:01:10.8]} 22... Kf8 {[%clk 0:01:23.1]} 23. Bg4 {[%clk 0:00:59]} 23...
e6 {[%clk 0:01:12.2]} 24. Rf4 {[%clk 0:00:53]} 24... f5 {[%clk 0:00:50]} 25.
exf6 {[%clk 0:00:48.1]} 25... Rd4 {[%clk 0:00:48.2]} 26. Rxd4 {[%clk 0:00:40]}
26... Bxd4 {[%clk 0:00:48.7]} 27. Bxe6 {[%clk 0:00:26.6]} 27... Re8 {[%clk
0:00:42]} 28. Rf7+ {[%clk 0:00:18]} 28... Kg8 {[%clk 0:00:40.4]} 29. Rg7+ {[%clk
0:00:07]} 29... Kh8 {[%clk 0:00:39.5]} 30. Re7 {[%clk 0:00:07.6]} 30... Rf8
{[%clk 0:00:25]} 31. f7 {[%clk 0:00:05.6]} 31... Kg7 {[%clk 0:00:23.9]} 32. Re8
{[%clk 0:00:04.7]} 32... Bc5 {[%clk 0:00:24.2]} 33. Kd3 {[%clk 0:00:04.1]} 33...
Kf6 {[%clk 0:00:24]} 34. Kc4 {[%clk 0:00:02.9]} 34... Bg1 {[%clk 0:00:20]} 35.
Kd5 {[%clk 0:00:03.8]} 35... Kg7 {[%clk 0:00:18.9]} 36. Kc6 {[%clk 0:00:02.7]}
36... Bxh2 {[%clk 0:00:18.8]} 37. Kd7 {[%clk 0:00:03]} 37... Bg1 {[%clk
0:00:18.9]} 38. Ke7 {[%clk 0:00:03.5]} 38... Bc5+ {[%clk 0:00:19.4]} 39. Kd7
{[%clk 0:00:04.1]} 39... h5 {[%clk 0:00:19]} 40. Bd5 {[%clk 0:00:04.1]} 40... g5
{[%clk 0:00:18.6]} 41. Ke6 {[%clk 0:00:04.1]} 41... Ba3 {[%clk 0:00:17.3]} 42.
Kf5 {[%clk 0:00:04.3]} 42... Bc1 {[%clk 0:00:16.6]} 43. Bb3 {[%clk 0:00:02.5]}
43... Bd2 {[%clk 0:00:16.7]} 44. Ke4 {[%clk 0:00:03.1]} 44... Bc1 {[%clk
0:00:17.1]} 45. Kf5 {[%clk 0:00:04]} 45... Bf4 {[%clk 0:00:17.6]} 46. Ke6 {[%clk
0:00:03.9]} 46... Bc1 {[%clk 0:00:18]} 47. Ke7 {[%clk 0:00:04.5]} 47... Ba3+
{[%clk 0:00:18.7]} 48. Ke6 {[%clk 0:00:05.3]} 48... h4 {[%clk 0:00:19.1]} 49.
Kd7 {[%clk 0:00:05.5]} 49... Bc1 {[%clk 0:00:19.3]} 50. Ke6 {[%clk 0:00:03.7]}
50... g4 {[%clk 0:00:19]} 51. Kf5 {[%clk 0:00:03.3]} 51... h3 {[%clk 0:00:19.2]}
52. gxh3 {[%clk 0:00:03.6]} 52... gxh3 {[%clk 0:00:19.7]} 53. Bd5 {[%clk
0:00:04]} 53... h2 {[%clk 0:00:20]} 54. Kg4 {[%clk 0:00:02.8]} 54... Rxf7 {[%clk
0:00:20.1]} 55. Re1 {[%clk 0:00:01.7]} 55... Rf2 {[%clk 0:00:20.2]} 56. Rxc1
{[%clk 0:00:01.1]} 56... Rd2 {[%clk 0:00:19.9]} 57. Be4 {[%clk 0:00:01.2]} 57...
Rxa2 {[%clk 0:00:19.3]} 58. Bf3 {[%clk 0:00:01.5]} 58... Kf6 {[%clk 0:00:19.1]}
59. Rh1 {[%clk 0:00:02.2]} 59... a5 {[%clk 0:00:18.4]} 60. Kg3 {[%clk
0:00:02.6]} 60... Kg5 {[%clk 0:00:18.9]} 61. Bg2 {[%clk 0:00:03.2]} 61... a4
{[%clk 0:00:18.7]} 62. Rxh2 {[%clk 0:00:04.1]} 62... Ra3+ {[%clk 0:00:19.3]} 63.
Kf2 {[%clk 0:00:04]} 63... Ra2+ {[%clk 0:00:19.9]} 64. Kg1 {[%clk 0:00:04.6]}
64... Kf4 {[%clk 0:00:20.2]} 65. Rh4+ {[%clk 0:00:04.4]} 65... Kg3 {[%clk
0:00:20.3]} 66. Rb4 {[%clk 0:00:04.5]} 66... Ra1+ {[%clk 0:00:20.3]} 67. Bf1
{[%clk 0:00:04.5]} 67... a3 {[%clk 0:00:21]} 68. Rb3+ {[%clk 0:00:04.9]} 68...
Kf4 {[%clk 0:00:21.3]} 69. Rb4+ {[%clk 0:00:05.8]} 69... Ke3 {[%clk 0:00:21.3]}
70. Rb3+ {[%clk 0:00:06.3]} 70... Kd4 {[%clk 0:00:21.8]} 71. Kf2 {[%clk
0:00:06.5]} 71... a2 {[%clk 0:00:21.9]} 72. Ra3 {[%clk 0:00:06.7]} 72... Kc5
{[%clk 0:00:21.4]} 73. Ra8 {[%clk 0:00:06.5]} 73... Kb4 {[%clk 0:00:21.8]} 74.
Ke2 {[%clk 0:00:07]} 74... Kc3 {[%clk 0:00:21.4]} 75. Bg2 {[%clk 0:00:06.9]}
75... Kb2 {[%clk 0:00:21.6]} 76. Bd5 {[%clk 0:00:07.2]} 76... Kb1 {[%clk
0:00:20.7]} 77. Bxa2+ {[%clk 0:00:07.3]} 77... Rxa2+ {[%clk 0:00:20.8]} 78. Rxa2
{[%clk 0:00:08.2]} 78... Kxa2 {[%clk 0:00:21.6]} 1/2-1/2

[Event "Early-Titled-Tuesday-Blitz-April-02-2024"]
[Site "Chess.com"]
[Date "2024.04.02"]
[Round "1"]
[White "Mariia89"]
[Black "PositionalPanther"]
[Result "1-0"]
[WhiteElo "2281"]
[BlackElo "2594"]
[TimeControl "180+1"]
[EndTime "8:08:49 PDT"]
[Termination "Mariia89 won on time"]

1. d4 {[%clk 0:03:00]} 1... f5 {[%clk 0:02:59]} 2. g3 {[%clk 0:02:58]} 2... Nf6
{[%clk 0:02:58.2]} 3. Bg2 {[%clk 0:02:58.2]} 3... g6 {[%clk 0:02:57.3]} 4. c4
{[%clk 0:02:58.2]} 4... Bg7 {[%clk 0:02:57.3]} 5. Nc3 {[%clk 0:02:57.9]} 5...
O-O {[%clk 0:02:57.4]} 6. Nf3 {[%clk 0:02:58.3]} 6... d6 {[%clk 0:02:56.2]} 7.
O-O {[%clk 0:02:57.6]} 7... c6 {[%clk 0:02:55.9]} 8. h3 {[%clk 0:02:56.6]} 8...
Qe8 {[%clk 0:02:41.1]} 9. Re1 {[%clk 0:02:52.3]} 9... h6 {[%clk 0:02:35.6]} 10.
e4 {[%clk 0:02:51.8]} 10... fxe4 {[%clk 0:02:32.3]} 11. Nxe4 {[%clk 0:02:52.7]}
11... Nxe4 {[%clk 0:02:32.7]} 12. Rxe4 {[%clk 0:02:53.6]} 12... Bf5 {[%clk
0:02:33.1]} 13. Re1 {[%clk 0:02:54.3]} 13... Qf7 {[%clk 0:02:28.9]} 14. g4
{[%clk 0:02:41.7]} 14... Be6 {[%clk 0:02:18.8]} 15. b3 {[%clk 0:02:28]} 15... a5
{[%clk 0:02:17.7]} 16. Bb2 {[%clk 0:02:27.4]} 16... Bd7 {[%clk 0:02:06.1]} 17.
Qe2 {[%clk 0:02:26.3]} 17... e6 {[%clk 0:02:04.1]} 18. Rad1 {[%clk 0:02:23.1]}
18... a4 {[%clk 0:02:04]} 19. Qc2 {[%clk 0:02:01.5]} 19... axb3 {[%clk 0:02:01]}
20. axb3 {[%clk 0:02:02.4]} 20... c5 {[%clk 0:01:39]} 21. Bc3 {[%clk 0:01:53.7]}
21... Bc6 {[%clk 0:01:34.5]} 22. d5 {[%clk 0:01:49.5]} 22... exd5 {[%clk
0:01:31.7]} 23. Bxg7 {[%clk 0:01:48.7]} 23... Qxg7 {[%clk 0:01:21.7]} 24. cxd5
{[%clk 0:01:47.9]} 24... Bb5 {[%clk 0:01:17.8]} 25. Re6 {[%clk 0:01:47.1]} 25...
Rf6 {[%clk 0:01:10]} 26. Rde1 {[%clk 0:01:46.3]} 26... Bd7 {[%clk 0:01:07.9]}
27. Re7 {[%clk 0:01:39]} 27... Rf7 {[%clk 0:01:05.6]} 28. Rxf7 {[%clk
0:01:38.3]} 28... Qxf7 {[%clk 0:01:06.5]} 29. Nh4 {[%clk 0:01:33.8]} 29... Kg7
{[%clk 0:00:51.7]} 30. Be4 {[%clk 0:01:33.3]} 30... g5 {[%clk 0:00:49.9]} 31.
Ng6 {[%clk 0:00:56.6]} 31... Qf6 {[%clk 0:00:41.8]} 32. Kg2 {[%clk 0:00:50.7]}
32... Ra1 {[%clk 0:00:40]} 33. Re2 {[%clk 0:00:51.1]} 33... Na6 {[%clk
0:00:39.9]} 34. Bf5 {[%clk 0:00:49.2]} 34... Nb4 {[%clk 0:00:39.2]} 35. Qe4
{[%clk 0:00:33.9]} 35... Bxf5 {[%clk 0:00:31.9]} 36. gxf5 {[%clk 0:00:33.1]}
36... Ra8 {[%clk 0:00:28.2]} 37. Qe7+ {[%clk 0:00:16.1]} 37... Qxe7 {[%clk
0:00:28.2]} 38. Rxe7+ {[%clk 0:00:17]} 38... Kf6 {[%clk 0:00:28.7]} 39. Rxb7
{[%clk 0:00:15.2]} 39... Kxf5 {[%clk 0:00:27.3]} 40. Ne7+ {[%clk 0:00:15.5]}
40... Ke4 {[%clk 0:00:24.9]} 41. Rd7 {[%clk 0:00:11.2]} 41... Ra6 {[%clk
0:00:22.4]} 42. f3+ {[%clk 0:00:08.6]} 42... Kf4 {[%clk 0:00:15.9]} 43. Ng6+
{[%clk 0:00:08.4]} 43... Kf5 {[%clk 0:00:15.4]} 44. Ne7+ {[%clk 0:00:08.7]}
44... Kf4 {[%clk 0:00:15.9]} 45. Ng6+ {[%clk 0:00:08.8]} 45... Ke3 {[%clk
0:00:16.4]} 46. Re7+ {[%clk 0:00:08.2]} 46... Kd3 {[%clk 0:00:15.6]} 47. Re6
{[%clk 0:00:06.7]} 47... Nxd5 {[%clk 0:00:14.8]} 48. Kg3 {[%clk 0:00:06.6]}
48... Ne3 {[%clk 0:00:13.3]} 49. Ne7 {[%clk 0:00:05.6]} 49... Kc3 {[%clk
0:00:08.6]} 50. Rxh6 {[%clk 0:00:06]} 50... Rb6 {[%clk 0:00:07.3]} 51. Rg6
{[%clk 0:00:04.9]} 51... Rxb3 {[%clk 0:00:06.9]} 52. Rxg5 {[%clk 0:00:05]} 52...
Kd4 {[%clk 0:00:07.2]} 53. h4 {[%clk 0:00:03.7]} 53... c4 {[%clk 0:00:07.5]} 54.
h5 {[%clk 0:00:03.9]} 54... c3 {[%clk 0:00:07.9]} 55. h6 {[%clk 0:00:04.4]}
55... c2 {[%clk 0:00:08.3]} 56. h7 {[%clk 0:00:04.9]} 56... c1=Q {[%clk
0:00:08.7]} 57. h8=Q+ {[%clk 0:00:03.1]} 57... Kd3 {[%clk 0:00:07.3]} 58. Qh7+
{[%clk 0:00:03]} 58... Ke2 {[%clk 0:00:07.1]} 59. Rh5 {[%clk 0:00:02.4]} 59...
Qg1+ {[%clk 0:00:06.4]} 60. Kf4 {[%clk 0:00:02.8]} 60... Rb4+ {[%clk 0:00:07]}
61. Qe4 {[%clk 0:00:01.6]} 1-0